bitfinex/quotes_ETHUSD_20250605
["timestamp","ask_amount","ask_price","bid_price","bid_amount"]
[1749156178545,13.159,2436.0,2435.0,0.51]
[1749156178840,1.6509,2435.9,2435.0,0.51]
[1749156179058,1.6509,2435.9,2433.9,4.10863223]
[1749156179335,1.6509,2435.9,2434.4,20.10778836]
[1749156179532,13.157,2435.8,2434.2,16.0]
[1749156179687,13.157,2435.8,2434.0,0.45102322]
[1749156179688,13.157,2435.8,2434.6,16.0]
[1749156179891,13.157,2435.8,2434.5,16.0]
[1749156180124,13.157,2435.8,2434.7,4.10724583]
[1749156180289,1.6509,2435.9,2434.7,0.82148068]
[1749156180491,1.6115,2436.2,2434.1,4.10828556]
[1749156180721,1.5234,2436.0,2433.3,8.881]
[1749156180920,1.5234,2436.0,2432.8,4.11032409]
[1749156180921,1.5234,2435.9,2432.4,9.95267547]
[1749156181142,1.5234,2435.7,2432.6,4.11082792]
[1749156181304,1.4665225,2435.2,2432.5,0.34317887]
[1749156181503,1.6428,2434.9,2432.5,4.45405935]
[1749156181719,1.6428,2434.9,2432.5,1.19102633]
[1749156181940,1.6428,2434.9,2433.9,4.10858484]
[1749156182152,1.6428,2434.9,2432.5,0.84784746]
[1749156182451,1.4665225,2434.6,2431.4,4.11281373]
[1749156182756,1.4665225,2434.6,2431.5,0.34332001]
[1749156182757,1.5287,2434.0,2431.5,0.34332001]
[1749156182898,1.5287,2434.0,2432.4,9.95267547]
[1749156183098,1.5287,2435.1,2434.1,20.1082426]
[1749156183399,9.77185605,2436.0,2433.5,2.03445835]
[1749156183400,1.5112,2436.0,2434.2,14.06071039]
[1749156183630,13.156,2435.9,2434.2,0.4174853]
[1749156183832,1.5112,2436.0,2434.9,4.10692422]
[1749156183997,1.5112,2436.0,2435.5,16.0]
[1749156184202,1.5112,2436.0,2434.8,16.0]
[1749156184501,1.5112,2436.0,2435.8,4.10533008]
[1749156184736,3.68938174,2437.6,2436.8,4.10374261]
[1749156184737,1.5889,2436.9,2436.8,4.10374261]
[1749156184901,1.4665225,2437.6,2436.9,20.10346159]
[1749156184902,13.155,2437.4,2436.9,20.10346159]
[1749156185096,1.6497,2437.6,2436.2,9.95267547]
[1749156185097,1.6497,2437.6,2436.3,16.0]
[1749156185409,2.98215477,2439.0,2436.2,9.95267547]
[1749156185410,13.155,2437.9,2436.9,16.0]
[1749156185609,1.5202,2438.2,2437.5,4.1024034]
[1749156185812,1.5202,2438.2,2436.9,19.00563234]
[1749156185813,13.155,2438.0,2437.0,16.0]
[1749156186053,13.155,2438.0,2437.2,16.0]
[1749156186211,1.5202,2438.2,2437.0,16.0]
[1749156186410,13.155,2437.9,2437.0,20.10334162]
[1749156186605,13.155,2437.9,2436.0,0.01546063]
[1749156186811,1.6367,2437.6,2436.0,0.01546063]
[1749156187258,1.4665225,2437.1,2434.3,4.10784786]
[1749156187463,1.4665225,2436.7,2434.4,1.40605233]
[1749156187665,1.6439,2436.3,2433.1,9.95267547]
[1749156187979,17.6439,2435.7,2433.2,0.34308014]
[1749156188143,1.4665225,2434.9,2433.2,0.34308014]
[1749156188342,0.2,2434.1,2432.0,0.51]
[1749156188543,0.2,2433.7,2431.0,1.234037]
[1749156188758,1.4665225,2432.7,2430.3,0.005]
[1749156188916,3.1112225,2432.4,2430.3,0.005]
[1749156189121,18.19978375,2432.5,2430.3,0.005]
[1749156189122,1.4665225,2432.0,2430.3,0.005]
[1749156189375,13.15,2431.9,2430.3,0.005]
[1749156189519,1.6447,2431.7,2428.6,0.10231633]
[1749156189851,1.5184,2431.3,2428.7,0.34371581]
[1749156192364,13.159,2431.0,2428.9,16.0]
[1749156192527,0.33965663,2431.1,2430.2,16.0]
[1749156192528,0.33965663,2430.9,2430.2,16.0]
[1749156192715,0.33965663,2430.9,2429.5,16.0]
[1749156192916,0.33965663,2430.9,2429.6,4.11577531]
[1749156193146,0.33965663,2430.9,2429.7,16.0]
[1749156193344,13.159,2430.8,2429.5,0.51]
[1749156193665,0.33965663,2430.7,2429.5,0.51]
[1749156193871,0.33965663,2430.7,2429.5,16.0]
[1749156194018,10.3869,2430.6,2428.8,0.0389172]
[1749156194219,0.55,2430.1,2427.4,0.21203272]
[1749156194415,0.55,2429.9,2426.4,0.3928]
[1749156194658,16.55,2429.7,2426.4,0.90860381]
[1749156194858,0.55,2429.5,2426.5,16.0]
[1749156195155,0.55,2429.2,2426.6,4.12093283]
[1749156195332,0.55,2428.9,2425.9,4.12218145]
[1749156195529,13.50465663,2428.8,2425.9,4.12218145]
[1749156195758,0.33965663,2428.7,2426.4,16.0]
[1749156196070,0.33965663,2428.7,2427.0,4.12030529]
[1749156196071,13.165,2428.6,2427.0,4.12030529]
[1749156196219,0.33965663,2428.7,2426.5,1.6]
[1749156196421,0.33965663,2428.5,2425.9,4.52932919]
[1749156196757,0.33965663,2428.5,2426.8,4.12051235]
[1749156197062,0.33965663,2428.5,2426.5,4.12116216]
[1749156197216,1.5277,2428.4,2426.8,25.95267547]
[1749156197423,0.33965663,2428.3,2427.7,16.0]
[1749156197983,0.33965663,2428.3,2425.8,9.5747131]
[1749156197984,1.5847,2428.1,2425.8,9.5747131]
[1749156198184,0.33965663,2428.0,2425.8,9.5747131]
[1749156198349,1.6135,2427.9,2425.8,0.2899131]
[1749156198543,1.6135,2427.7,2425.8,0.2899131]
[1749156198846,1.5077,2427.5,2425.8,0.2899131]
[1749156199085,0.33965663,2427.4,2425.8,0.2899131]
[1749156199296,1.5077,2427.3,2425.8,0.2899131]
[1749156199509,0.33965663,2427.2,2425.8,0.2899131]
[1749156199651,13.174,2427.1,2425.8,0.2899131]
[1749156199976,0.33965663,2427.0,2425.9,9.95267547]
[1749156200148,0.33965663,2427.0,2425.8,0.73115384]
[1749156200349,1.5077,2427.3,2425.8,0.2899131]
[1749156200592,1.5077,2427.3,2426.6,4.12086085]
[1749156200773,1.5077,2427.3,2426.7,16.0]
[1749156201082,1.5077,2427.3,2426.3,16.0]
[1749156201282,1.5077,2427.3,2425.8,0.2899131]
[1749156201493,13.182,2427.2,2425.8,0.2899131]
[1749156201791,1.6237,2427.1,2425.8,0.2899131]
[1749156201959,1.6237,2427.1,2424.8,1.9629]
[1749156202158,1.6237,2426.9,2424.8,1.9629]
[1749156202360,16.0,2426.9,2424.8,1.9629]
[1749156202566,16.0,2426.9,2423.4,0.14403692]
[1749156202567,1.6237,2426.1,2423.4,0.14403692]
[1749156202873,1.6237,2425.8,2423.4,0.14403692]
[1749156203171,16.55,2425.9,2423.4,0.14403692]
[1749156203172,1.6237,2425.6,2423.4,0.14403692]
[1749156203373,1.6237,2425.6,2423.6,4.12609341]
[1749156203686,1.6237,2425.6,2423.4,0.65403692]
[1749156203687,1.6237,2425.6,2424.0,17.5372]
[1749156203895,1.6237,2425.6,2424.0,1.5372]
[1749156204048,1.6237,2425.6,2424.3,4.12490203]
[1749156204254,1.6237,2425.6,2424.1,16.0]
[1749156204449,8.901,2427.3,2425.5,20.12286126]
[1749156204655,1.5398,2427.2,2426.7,4.1207867]
[1749156204874,1.5398,2427.2,2425.7,4.12252133]
[1749156204875,1.5398,2427.2,2425.8,4.12233292]
[1749156205059,1.5398,2427.2,2426.1,4.12184163]
[1749156205261,1.5398,2426.5,2423.4,0.14403692]
[1749156205467,16.55,2426.2,2423.4,0.14403692]
[1749156205667,1.5681,2426.1,2423.4,0.14403692]
[1749156205868,16.55,2426.0,2423.4,0.14403692]
[1749156206157,0.55,2425.4,2423.4,0.14403692]
[1749156206359,0.55,2425.4,2421.8,4.12905413]
[1749156206360,1.6336,2425.3,2422.0,0.21240716]
[1749156206670,0.55,2424.7,2422.9,0.34453861]
[1749156206874,2.0811,2424.7,2422.9,0.34453861]
[1749156207073,16.0,2424.8,2422.9,0.34453861]
[1749156207074,1.5311,2424.2,2422.9,0.34453861]
[1749156208191,1.5311,2424.2,2422.8,0.2899131]
[1749156208499,8.905,2424.9,2422.8,0.2899131]
[1749156208500,13.192,2424.1,2422.8,0.7999131]
[1749156208660,8.66591424,2424.9,2422.8,0.7999131]
[1749156208862,13.192,2424.8,2422.8,0.7999131]
[1749156209458,8.66591424,2424.9,2423.1,4.126907]
[1749156209695,13.2,2424.8,2422.9,5.66867885]
[1749156209881,13.2,2424.8,2422.9,1.5415]
[1749156210088,8.66591424,2424.9,2423.2,16.0]
[1749156210408,13.2,2425.0,2422.9,1.5415]
[1749156210561,13.2,2425.1,2422.9,1.5415]
[1749156211070,13.2,2425.1,2423.1,16.0]
[1749156211319,16.0,2425.0,2422.8,0.2899131]
[1749156211595,1.5546,2424.6,2422.8,0.2899131]
[1749156211985,1.5546,2424.6,2423.1,4.12689307]
[1749156212161,1.5546,2424.6,2422.9,1.5195]
[1749156212361,1.5546,2424.6,2423.1,16.0]
[1749156212557,1.6394,2425.1,2424.6,4.12438821]
[1749156212785,5.6036745,2428.1,2424.0,1.5308]
[1749156212786,1.5027,2425.7,2424.1,25.95267547]
[1749156213002,1.5027,2425.7,2424.0,10.4428]
[1749156213204,1.5027,2425.7,2422.9,1.5776]
[1749156213401,1.7511,2425.5,2422.9,0.51]
[1749156213701,1.5511,2424.6,2422.9,0.51]
[1749156213900,9.95267547,2425.0,2422.8,0.2899131]
[1749156213901,1.5511,2424.3,2422.8,0.2899131]
[1749156214074,1.6257,2424.3,2422.8,0.2899131]
[1749156214400,1.6301,2423.9,2420.5,1.5918846]
[1749156214601,16.0,2424.1,2420.5,1.5918846]
[1749156214602,1.6301,2423.5,2420.6,0.64559471]
[1749156214911,1.6301,2423.5,2420.7,0.22374793]
[1749156215197,0.55,2423.5,2420.5,1.5918846]
[1749156215383,1.6301,2423.1,2420.5,5.72325331]
[1749156215585,1.5271,2422.8,2420.5,0.0163846]
[1749156216499,1.5361,2423.4,2421.8,1.6001]
[1749156216911,1.5361,2423.4,2419.7,22.24366533]
[1749156217108,9.95267547,2419.8,2417.0,0.046563]
[1749156217314,9.95267547,2419.8,2415.0,1.63742]
[1749156217315,9.95267547,2418.7,2416.8,2.55214058]
[1749156217480,12.03553198,2418.6,2416.8,2.55214058]
[1749156217682,12.03553198,2418.6,2415.1,1.242812]
[1749156217683,0.2,2417.9,2415.1,1.242812]
[1749156217991,2.0289078,2418.5,2413.9,24.31818182]
[1749156217992,1.5099,2417.5,2413.9,24.31818182]
[1749156218195,1.3767,2417.2,2413.9,24.31818182]
[1749156218409,1.3767,2417.0,2413.9,24.82818182]
[1749156218579,1.3767,2416.8,2413.9,24.82818182]
[1749156218785,1.3767,2416.6,2413.9,24.82818182]
[1749156219108,4.297,2417.5,2413.9,24.82818182]
[1749156219109,1.71635663,2416.5,2414.3,8.919]
[1749156219278,0.33965663,2416.4,2414.3,8.919]
[1749156219479,13.213,2416.3,2414.3,8.919]
[1749156219680,0.33965663,2416.2,2414.3,8.919]
[1749156219978,1.6512,2416.1,2414.3,8.919]
[1749156220289,0.33965663,2416.0,2414.7,16.0]
[1749156220500,0.33965663,2416.0,2414.4,16.0]
[1749156220708,0.33965663,2416.0,2414.7,1.6285]
[1749156221075,0.27025082,2416.0,2414.7,1.6285]
[1749156221315,0.01846696,2416.0,2415.3,16.37367721]
[1749156221489,0.01846696,2416.0,2414.8,16.0]
[1749156221693,0.01846696,2416.0,2415.0,16.0]
[1749156221891,0.01846696,2416.0,2414.7,1.6285]
[1749156222091,0.01846696,2416.0,2415.3,16.0]
[1749156222524,0.01846696,2416.0,2415.8,4.13940075]
[1749156222696,1.6105,2417.4,2415.9,24.928]
[1749156223733,1.6428,2418.3,2416.4,16.0]
[1749156224023,14.8708,2418.9,2416.7,16.0]
[1749156224183,14.8708,2418.9,2416.9,4.13738525]
[1749156224380,14.8708,2418.9,2416.6,16.0]
[1749156224586,13.235,2418.8,2416.6,16.0]
[1749156224919,13.235,2418.7,2415.9,8.928]
[1749156225127,16.0,2418.6,2415.9,9.8208]
[1749156225308,13.235,2418.7,2416.4,4.13833806]
[1749156225633,13.235,2418.6,2415.9,9.8208]
[1749156225919,1.5638,2419.5,2417.9,9.95267547]
[1749156226143,1.5638,2419.5,2418.0,8.933]
[1749156226340,1.5189,2420.2,2418.4,4.13482087]
[1749156226638,1.5189,2420.2,2418.0,10.82156755]
[1749156226639,1.5189,2420.2,2419.3,4.13337438]
[1749156226779,1.5189,2420.2,2419.3,8.936]
[1749156226982,13.239,2420.1,2417.8,1.242056]
[1749156227180,16.0,2420.0,2417.4,1.5566]
[1749156227429,0.62949218,2420.5,2417.4,1.5566]
[1749156227593,16.0,2420.3,2417.4,1.5566]
[1749156227795,16.0,2420.3,2417.5,4.13650465]
[1749156227991,13.239,2420.2,2417.5,0.56931047]
[1749156228197,13.239,2420.1,2417.5,20.13650465]
[1749156228431,13.239,2420.1,2418.3,4.13497559]
[1749156228724,13.239,2420.0,2418.4,16.0]
[1749156228886,13.239,2420.0,2418.4,20.13490735]
[1749156229083,1.67076831,2422.3,2418.3,8.936]
[1749156229410,13.239,2421.1,2418.9,16.0]
[1749156229621,13.239,2421.0,2418.4,8.936]
[1749156229819,16.0,2420.9,2418.4,13.07093929]
[1749156230031,1.5266,2420.8,2418.5,16.0]
[1749156230799,13.239,2420.7,2418.6,16.0]
[1749156231129,14.8694,2420.6,2418.5,16.0]
[1749156231432,1.6304,2420.6,2418.8,16.0]
[1749156231579,13.239,2420.5,2417.8,1.5512]
[1749156231783,13.239,2420.5,2418.4,16.0]
[1749156232022,13.239,2420.5,2417.9,8.936]
[1749156232023,1.5686,2420.4,2417.9,8.936]
[1749156232385,1.5686,2420.4,2418.9,4.13395388]
[1749156232582,14.8076,2420.4,2419.0,16.0]
[1749156232783,1.5686,2420.3,2415.9,0.8928]
[1749156232984,0.1919,2418.5,2415.2,0.02019]
[1749156233241,0.1919,2418.2,2415.2,0.02019]
[1749156233441,0.55,2417.9,2415.2,0.02019]
[1749156233747,0.1919,2417.8,2415.2,0.02019]
[1749156234025,0.55,2417.3,2415.2,0.02019]
[1749156234234,0.62949218,2417.8,2415.2,0.02019]
[1749156234235,0.6162,2417.2,2415.2,0.02019]
[1749156234725,0.6162,2417.0,2415.2,0.02019]
[1749156235225,13.239,2416.9,2415.3,16.0]
[1749156235383,13.239,2416.9,2415.4,4.13998514]
[1749156235582,16.55,2418.4,2415.3,16.0]
[1749156235787,26.50267547,2418.4,2415.2,8.95619]
[1749156236006,0.55,2418.2,2415.2,8.95619]
[1749156236226,0.55,2418.2,2415.4,4.13998527]
[1749156236384,8.936,2418.5,2415.3,16.0]
[1749156236589,1.24364,2419.4,2415.6,16.0]
[1749156236825,1.24364,2419.4,2416.0,16.0]
[1749156237029,13.245,2419.3,2416.5,16.0]
[1749156237189,8.94,2419.7,2416.7,16.0]
[1749156237390,13.245,2419.6,2416.7,16.0]
[1749156237591,8.94,2419.7,2416.7,16.0]
[1749156237792,2.22087368,2419.4,2414.3,8.94]
[1749156238020,18.08285651,2418.6,2414.4,9.95267547]
[1749156238217,0.73826575,2418.5,2415.1,9.95267547]
[1749156238387,13.245,2418.4,2415.3,4.14027242]
[1749156238604,1.49584027,2420.2,2415.9,17.5296]
[1749156238793,13.245,2419.6,2416.1,16.0]
[1749156239130,13.246,2419.5,2416.7,16.0]
[1749156239344,13.246,2419.5,2416.1,16.0]
[1749156239549,13.246,2419.5,2416.3,16.0]
[1749156239846,0.73826575,2420.4,2416.8,16.0]
[1749156240046,13.246,2419.4,2417.1,4.13707592]
[1749156240227,13.246,2419.3,2416.7,4.13770566]
[1749156240543,10.69094122,2420.7,2416.7,16.0]
[1749156240745,9.81030955,2421.0,2417.3,30.08948669]
[1749156240959,13.246,2420.9,2417.5,16.0]
[1749156241139,13.246,2420.9,2417.1,17.6655]
[1749156241445,13.246,2420.8,2417.3,16.0]
[1749156241651,8.941,2421.0,2418.6,16.0]
[1749156241858,13.246,2420.7,2418.7,8.941]
[1749156242172,16.0,2420.6,2418.7,8.941]
[1749156242768,9.79362802,2420.1,2415.2,0.02019]
[1749156242978,9.79362802,2420.9,2415.2,0.02019]
[1749156242979,2.0026761,2418.4,2415.2,0.02019]
[1749156243285,16.0,2416.7,2415.2,0.02019]
[1749156243421,10.11134056,2416.6,2415.2,0.02019]
[1749156243622,2.04407124,2416.4,2415.2,1e-08]
[1749156243928,18.00019093,2416.2,2413.9,24.31818182]
[1749156244128,19.3172226,2416.1,2413.9,24.31818182]
[1749156244331,1.07267475,2416.0,2413.9,24.31818182]
[1749156244553,1.07420729,2415.9,2413.9,24.31818182]
[1749156244826,16.0,2415.3,2413.9,21.98938167]
[1749156245026,16.0,2415.1,2413.9,21.98938167]
[1749156245221,1.07420729,2415.0,2413.9,21.98938167]
[1749156245465,9.80498661,2414.0,2412.8,2.23794063]
[1749156245626,0.2,2413.4,2411.0,24.57988981]
[1749156245828,1.27420729,2413.3,2411.0,24.57988981]
[1749156246071,17.07267475,2413.2,2411.0,24.57988981]
[1749156246227,20.297,2413.0,2411.0,24.57988981]
[1749156246427,16.0,2413.0,2411.0,24.57988981]
[1749156246753,19.333,2412.9,2411.0,24.57988981]
[1749156246974,13.253,2412.9,2411.0,24.57988981]
[1749156247154,8.946,2413.3,2411.0,24.57988981]
[1749156247682,13.253,2413.2,2411.0,24.57988981]
[1749156248059,25.80498661,2413.1,2411.0,24.57988981]
[1749156248346,25.80498661,2413.1,2409.8,0.02]
[1749156248347,0.54030242,2413.1,2409.8,0.02]
[1749156248704,2.09301126,2412.6,2409.8,0.02]
[1749156248989,9.80498661,2412.7,2409.8,0.02]
[1749156248990,0.55,2411.9,2409.8,0.02]
[1749156249495,8.952,2412.0,2409.8,0.02]
[1749156249496,13.263,2411.8,2409.8,0.02]
[1749156249799,16.55,2411.7,2409.8,0.02]
[1749156250090,16.0,2411.5,2409.8,0.02]
[1749156250245,0.55,2411.4,2409.8,0.02]
[1749156250571,13.271,2411.3,2409.8,0.02]
[1749156250754,0.55,2411.1,2409.8,0.02]
[1749156250954,13.271,2411.2,2409.8,0.02]
[1749156251155,0.55,2411.8,2409.8,0.02]
[1749156251359,13.271,2411.7,2409.8,0.02]
[1749156251559,13.271,2411.6,2408.4,0.18323228]
[1749156251778,13.271,2411.6,2406.1,2.02492925]
[1749156251779,1.618,2410.4,2406.1,2.02492925]
[1749156251978,1.618,2410.0,2407.2,9.80498661]
[1749156252178,1.6495,2410.7,2408.0,16.0]
[1749156252481,1.6495,2410.7,2408.7,16.0]
[1749156252683,1.6495,2410.7,2409.5,4.15012083]
[1749156252896,1.6495,2410.7,2409.6,0.38282521]
[1749156253195,1.6495,2410.7,2408.6,0.42430759]
[1749156253347,13.271,2410.6,2408.1,0.22978605]
[1749156253546,13.271,2410.6,2408.2,0.38293917]
[1749156253747,13.271,2410.6,2408.1,0.64533347]
[1749156254000,13.271,2410.6,2409.1,16.0]
[1749156254147,13.271,2410.6,2408.2,0.6126546]
[1749156254148,13.271,2410.6,2409.2,0.38290617]
[1749156254348,13.266,2410.6,2408.2,4.15247902]
[1749156254551,1.6495,2410.7,2408.2,4.15231979]
[1749156254754,13.277,2410.5,2408.2,5.71744138]
[1749156254978,13.277,2410.5,2408.7,4.15160076]
[1749156255251,1.6495,2410.7,2408.2,21.71737793]
[1749156255471,1.6495,2410.7,2408.7,4.15152568]
[1749156255788,1.6495,2410.7,2409.2,9.80498661]
[1749156255949,1.5758,2411.6,2409.9,9.80498661]
[1749156256155,1.6312,2412.7,2410.6,9.80498661]
[1749156256386,8.962,2414.4,2411.5,1.5416]
[1749156256387,1.6312,2413.3,2411.5,1.5416]
[1749156256788,1.6312,2413.3,2411.7,25.80498661]
[1749156256952,1.4665225,2416.6,2411.5,1.95211809]
[1749156256953,13.282,2413.9,2412.7,4.14461513]
[1749156257157,1.6312,2414.1,2413.1,0.55]
[1749156257391,13.282,2414.0,2412.0,1.5416]
[1749156257550,1.6312,2414.1,2412.1,0.55]
[1749156257751,1.6312,2414.1,2413.3,4.14362797]
[1749156257950,13.282,2414.4,2413.4,0.55]
[1749156258164,13.282,2414.4,2413.5,0.55]
[1749156258377,13.282,2414.4,2413.0,16.0]
[1749156258694,1.5272,2414.8,2413.0,16.0]
[1749156258695,1.5272,2414.8,2413.8,0.55]
[1749156258866,1.5486,2415.5,2413.5,0.55]
[1749156259066,1.5486,2415.5,2414.6,0.55]
[1749156259257,1.5486,2416.3,2414.7,4.14130119]
[1749156259454,14.8306,2416.3,2414.6,1.6183]
[1749156259686,13.282,2416.2,2414.7,0.55]
[1749156259906,13.282,2416.6,2414.7,0.55]
[1749156260200,1.5486,2417.0,2415.4,0.55]
[1749156260372,14.8266,2417.0,2415.9,0.55]
[1749156260567,1.5486,2417.0,2416.1,0.55]
[1749156260900,0.2,2417.8,2417.1,4.13705658]
[1749156260901,13.278,2417.7,2417.1,4.13705658]
[1749156261108,13.278,2418.2,2416.6,9.80498661]
[1749156261306,13.278,2418.2,2416.0,5.71365244]
[1749156261307,13.278,2418.2,2416.4,4.13829269]
[1749156261598,1.6067,2417.9,2416.1,4.13890153]
[1749156261782,1.6067,2417.9,2416.2,9.80498661]
[1749156262003,14.8847,2418.3,2416.1,0.41554309]
[1749156262205,1.6067,2418.3,2416.1,16.0]
[1749156262382,1.6067,2418.3,2416.0,11.37958661]
[1749156262383,13.51636626,2418.2,2417.3,16.0]
[1749156262586,0.23836626,2418.2,2418.0,4.13549322]
[1749156262881,13.278,2418.9,2418.0,0.55]
[1749156263115,13.278,2418.9,2417.7,4.13612169]
[1749156263294,13.278,2418.9,2418.0,4.13561541]
[1749156263617,13.278,2418.9,2418.0,0.55]
[1749156263818,1.6567,2419.8,2417.7,0.55]
[1749156264018,0.2,2420.9,2419.2,4.13358037]
[1749156264321,0.3832416,2421.5,2418.9,0.55]
[1749156264322,0.2,2420.3,2418.9,0.55]
[1749156264522,0.2,2420.3,2418.8,8.957]
[1749156264820,1.8567,2420.2,2418.1,0.55]
[1749156265023,1.6567,2420.2,2418.9,0.55]
[1749156265223,0.2,2420.7,2418.2,0.21332]
[1749156265224,1.6567,2421.0,2418.8,8.95]
[1749156265408,0.2,2420.7,2419.3,4.13325712]
[1749156265608,1.6567,2421.0,2418.8,8.95]
[1749156265796,13.269,2420.6,2419.3,4.13328378]
[1749156266127,1.6567,2421.0,2418.9,16.0]
[1749156266128,0.2,2420.4,2418.9,16.0]
[1749156266284,13.26,2420.3,2418.9,16.0]
[1749156266479,0.2,2420.7,2419.0,0.55]
[1749156266683,13.26,2420.6,2419.2,0.55]
[1749156266929,1.6567,2421.0,2419.4,0.55]
[1749156267257,1.6567,2421.0,2420.2,4.13185483]
[1749156267548,13.26,2421.4,2420.5,0.55]
[1749156267727,13.26,2421.4,2420.7,4.13101005]
[1749156267934,13.26,2421.4,2420.2,16.0]
[1749156268101,0.3832416,2421.5,2420.2,16.0]
[1749156268310,0.3832416,2421.5,2421.4,20.12984224]
[1749156268527,1.5962,2422.4,2422.1,4.12863408]
[1749156268699,1.5962,2423.1,2422.4,4.12798082]
[1749156268900,14.8562,2423.1,2421.4,8.945]
[1749156269263,0.16975343,2422.5,2421.4,8.945]
[1749156269457,1.5962,2423.1,2421.5,16.0]
[1749156269659,13.252,2422.6,2421.5,16.0]
[1749156269808,1.5962,2423.1,2421.9,0.55]
[1749156270013,1.612,2423.8,2422.9,20.12728548]
[1749156270236,0.16975343,2424.2,2422.9,20.12728548]
[1749156270552,13.252,2424.8,2423.5,4.12621307]
[1749156270745,0.16975343,2424.4,2423.0,20.12700153]
[1749156270946,13.252,2424.3,2423.1,0.55]
[1749156271149,1.5559,2423.7,2421.6,1.5532]
[1749156271332,0.16975343,2422.9,2421.7,0.42007874]
[1749156271532,1.5559,2423.7,2421.7,0.42007874]
[1749156271533,0.16975343,2422.0,2421.7,0.42007874]
[1749156272046,0.16975343,2422.0,2421.8,0.3446951]
[1749156272355,0.16975343,2421.5,2420.2,8.937]
[1749156272558,0.16975343,2421.3,2420.3,0.34490873]
[1749156272708,13.41075343,2421.2,2420.3,0.34490873]
[1749156272906,13.241,2421.2,2420.3,0.34490873]
[1749156273175,13.241,2421.2,2420.2,8.937]
[1749156273517,9.80498661,2423.3,2420.2,8.937]
[1749156273518,1.3171,2421.5,2420.3,16.0]
[1749156273720,1.3171,2421.5,2420.5,16.0]
[1749156273933,1.3171,2421.5,2420.5,4.13135365]
[1749156274137,1.48685343,2422.2,2420.5,4.54446496]
[1749156274456,0.16975343,2421.4,2420.2,8.937]
[1749156274811,0.16975343,2421.3,2420.2,8.937]
[1749156275013,0.16975343,2421.7,2420.2,8.937]
[1749156275263,0.16975343,2421.7,2420.3,16.0]
[1749156275558,0.16975343,2421.7,2420.3,20.13161227]
[1749156275723,0.16975343,2421.4,2420.3,16.0]
[1749156275925,0.16975343,2421.2,2420.2,8.937]
[1749156276128,0.16975343,2421.4,2420.3,16.0]
[1749156276323,0.16975343,2421.3,2420.3,16.0]
[1749156276522,0.16975343,2421.3,2420.5,16.0]
[1749156276846,0.16975343,2421.5,2420.4,0.55]
[1749156277082,0.16975343,2420.9,2420.2,8.937]
[1749156277446,0.16975343,2420.7,2420.0,1.0]
[1749156277641,1.3171,2421.6,2420.6,16.0]
[1749156277884,1.3171,2421.6,2420.0,1.0]
[1749156277885,13.235,2421.5,2420.8,16.0]
[1749156278181,13.235,2421.5,2420.6,16.0]
[1749156278380,13.235,2421.5,2420.6,4.13116131]
[1749156278584,13.235,2421.5,2420.7,16.0]
[1749156278748,13.235,2421.5,2420.6,16.0]
[1749156278944,13.235,2421.5,2420.6,0.55]
[1749156279387,0.16975343,2421.4,2420.3,16.55]
[1749156279765,13.235,2421.5,2420.7,4.13103647]
[1749156280094,3.33546083,2422.8,2421.4,0.55]
[1749156280266,0.0667195,2422.7,2421.6,4.12935019]
[1749156280468,0.0667195,2422.7,2422.0,16.0]
[1749156280796,0.0667195,2422.7,2422.1,16.0]
[1749156280999,0.0667195,2422.7,2422.3,4.12824306]
[1749156281210,0.0667195,2422.7,2422.1,0.55]
[1749156281558,0.0667195,2422.7,2422.3,4.12828564]
[1749156281763,0.0667195,2422.7,2422.1,0.55]
[1749156281957,0.0667195,2422.7,2422.6,20.12779658]
[1749156282204,0.16975343,2424.2,2422.7,16.0]
[1749156282356,1.3171,2424.5,2423.0,4.12711514]
[1749156282712,1.3171,2424.5,2422.9,1.5284]
[1749156282713,0.16975343,2423.6,2422.9,1.5284]
[1749156282856,13.40275343,2423.5,2422.3,1.5384]
[1749156283063,13.39675343,2423.4,2422.3,1.88302395]
[1749156283284,0.16975343,2422.8,2422.3,0.34462395]
[1749156283798,0.16975343,2423.0,2422.3,0.34462395]
[1749156284095,13.227,2422.7,2421.7,1.6159]
[1749156284293,13.227,2422.7,2422.1,4.12853366]
[1749156284505,0.16975343,2422.9,2422.0,16.0]
[1749156284811,1.48685343,2423.9,2422.0,2.53396064]
[1749156284997,0.16975343,2423.3,2422.6,16.0]
[1749156285183,0.16975343,2423.5,2422.8,16.0]
[1749156285387,0.16975343,2423.5,2422.6,16.0]
[1749156285584,0.16975343,2423.5,2422.2,0.55]
[1749156285796,0.16975343,2423.5,2422.8,20.12741898]
[1749156286107,13.227,2423.4,2422.8,16.0]
[1749156286305,13.227,2423.4,2423.0,4.12710463]
[1749156286621,0.16975343,2423.8,2422.7,16.0]
[1749156286830,0.16975343,2423.8,2422.6,4.12775572]
[1749156286831,13.39675343,2423.8,2422.2,4.12845593]
[1749156287112,1.3171,2423.9,2423.3,4.12651174]
[1749156287332,0.16975343,2423.8,2422.8,0.55]
[1749156287509,13.224,2424.0,2423.3,4.12650039]
[1749156287677,0.16975343,2424.3,2423.8,4.12566585]
[1749156287879,13.224,2424.4,2424.0,4.12530242]
[1749156288229,13.224,2424.4,2423.1,4.12692716]
[1749156288230,0.16975343,2424.0,2423.1,4.12692716]
[1749156288374,0.16975343,2424.1,2422.8,1.6013]
[1749156288576,0.16975343,2423.3,2422.1,13.05455232]
[1749156288889,0.16975343,2423.5,2422.3,20.12828716]